Workbook

Sheet vpl
B2: Custo de Oportunidade | D2: 7.00%
B4: Período | C4: Mês | D4: Fluxo de Caixa (CF) | E4: Valor Presente Líquido
B5: 0 | D5: R$ 5,500.00
B6: 1 | C6: Janeiro | D6: R$ 1,000.00 | E6: =NPV(D2,D6)+D5 -> R$ 4,565.4
B7: 2 | C7: Fevereiro | D7: R$ 1,000.00 | E7: =NPV(D2,D7)+E6 -> R$ 3,630.8
B8: 3 | C8: Março | D8: R$ 1,000.00 | E8: =NPV(D2,D8)+E7 -> R$ 2,696.3
B9: 4 | C9: Abril | D9: R$ 1,000.00 | E9: =NPV(D2,D9)+E8 -> R$ 1,761.7
B10: 5 | C10: Maio | D10: R$ 1,000.00 | E10: =NPV(D2,D10)+E9 -> R$ 827.1
B11: 6 | C11: Junho | D11: R$ 550.00 | E11: =NPV(D2,D11)+E10 -> R$ 313.1
B12: 7 | C12: Julho | D12: R$ 550.00 | E12: =NPV(D2,D12)+E11 -> R$ 200.9
B13: 8 | C13: Agosto | D13: R$ 550.00 | E13: =NPV(D2,D11)+E12 -> R$ 715.0

Sheet vpl_tir
C4: Custo de Oportunidade | E4: 7.00%
C6: Período | D6: Mês | E6: Fluxo de Caixa (CF) | F6: Valor Presente Líquido | G6: Taxa Interna de Retorno
C7: 0 | E7: -5,500.00
C8: 1 | D8: Janeiro | E8: 1,200.00 | F8: =NPV(E4,E8)+E7 -> R$ 4,378.5 | G8: =IRR(E7:E8) -> -78%
C9: 2 | D9: Fevereiro | E9: 1,200.00 | F9: =NPV(E4,E9)+F8 -> R$ 3,257.0 | G9: =IRR(E7:E9) -> -41.12%
C10: 3 | D10: Março | E10: 2,000.00 | F10: =NPV(E4,E10)+F9 -> R$ 1,387.9 | G10: =IRR(E7:E10) -> -9.58%
C11: 4 | D11: Abril | E11: 1,000.00 | F11: =NPV(E4,E11)+F10 -> R$ 453.3 | G11: =IRR(E7:E11) -> -0.72%
C12: 5 | D12: Maio | E12: 1,000.00 | F12: =NPV(E4,E12)+F11 -> R$ 481.3 | G12: =IRR(E7:E12) -> 5.44%
C13: 6 | D13: Junho | E13: 550.00 | F13: =NPV(E4,E13)+F12 -> R$ 995.3 | G13: =IRR(E7:E13) -> 7.93%
C14: 7 | D14: Julho | E14: 550.00 | F14: =NPV(E4,E14)+F13 -> R$ 1,509.3 | G14: =IRR(E7:E14) -> 9.88%
C15: 8 | D15: Agosto | E15: 550.00 | F15: =NPV(E4,E15)+F14 -> R$ 2,023.4 | G15: =IRR(E7:E15) -> 11.41%

Sheet payback
B4: Custo de Oportunidade | D4: 7.00%
B5: Período | C5: Mês | D5: Fluxo de Caixa (CF) | E5: Valor Presente Líquido | F5: Taxa Interna de Retorno
B6: 0 | D6: -5,500.00
B7: 1 | C7: Janeiro | D7: 1,200.00 | E7: =NPV(D4,D7)+D6 -> R$ 4,378.5 | F7: =IRR(D6:D7) -> -78%
B8: 2 | C8: Fevereiro | D8: 1,200.00 | E8: =NPV(D4,D8)+E7 -> R$ 3,257.0 | F8: =IRR(D6:D8) -> -41.12%
B9: 3 | C9: Março | D9: 2,000.00 | E9: =NPV(D4,D9)+E8 -> R$ 1,387.9 | F9: =IRR(D6:D9) -> -9.58%
B10: 4 | C10: Abril | D10: 1,100.00 | E10: =NPV(D4,D10)+E9 -> R$ 359.8 | F10: =IRR(D6:D10) -> 0.00%
B11: 5 | C11: Maio | D11: 1,000.00 | E11: =NPV(D3,D11)+E10 -> R$ 640.2 | F11: =IRR(D6:D11) -> 5.99%
B12: 6 | C12: Junho | D12: 230.00 | E12: =NPV(D3,D12)+E11 -> R$ 870.2 | F12: =IRR(D6:D12) -> 7.05%
B13: 7 | C13: Julho | D13: 550.00 | E13: =NPV(D3,D13)+E12 -> R$ 1,420.2 | F13: =IRR(D6:D13) -> 9.14%
B14: 8 | C14: Agosto | D14: 550.00 | E14: =NPV(D3,D14)+E13 -> R$ 1,970.2 | F14: =IRR(D6:D14) -> 10.76%

Sheet Rural_agropecuária_anual
A2: Tipo Projeto | B2: Rural/agropecuária
B4: Informações Importantes
A5: Dimensionamento | B5: Tamanho do sistema a ser instalado (Wp) | C5: 18000 | D5: Informações Financeiras | E5: Taxa de disponibilidade (%) | F5: 5.50%
B6: Expectativa de produção mensal (kwh) | E6: Valor do R$/Wp | F6: R$ 4.00
B7: Expectativa de produção anual de Energia (kWh) | C7: 23018 | E7: Custo Total | F7: =F6*C5 -> R$ 72,000.00
B8: Decaimento da Produção (%/ano) | C8: 0.50% | E8: Custo do kWh | F8: 0.386
A9: Informações da instalação | B9: Custo de disponibilidade (kWh) | C9: 100 | E9: Alíquota ICMS sobre CD | F9: 30.00%
B10: Consumo médio mensal | C10: 1894 | E10: Aumento anual da tarifa | F10: 5.00%
E11: Custos de manutenção diversos (R$/mês) | F11: 20
E12: Troca do Inversor (10 anos) | F12: R$ 10,000.00
B16: Tabela considerando valores médios de produção
B17: Período | C17: Ano | D17: Custo | E17: Receita | F17: Saldo | G17: VPL | H17: TIR
B18: 0 | D18: =-F7 -> -R$ 72,000.00
B19: 1 | C19: 2018 | D19: R$ 240.00 | E19: =(C7)*F8 -> R$ 8,884.95 | F19: =E19-D19 -> R$ 8,644.95 | G19: =NPV($F$5,F19)+D18 -> R$ 63,805.74 | H19: =IRR($D$36:D37) -> -88%
B20: 2 | C20: 2019 | D20: R$ 240.00 | E20: =(C7-C7*C8)*(F8+F8*F10) -> R$ 9,282.55 | F20: =E20-D20 -> R$ 9,042.55 | G20: =NPV($F$5,F20)+G19 -> R$ 55,234.60 | H20: =IRR($D$36:D38) -> -58%
B21: 3 | C21: 2020 | D21: R$ 240.00 | E21: =(C7-C7*2*C8)*(F8+F8*2*F10) -> R$ 9,675.71 | F21: =E21-D21 -> R$ 9,435.71 | G21: =NPV($F$5,F21)+G20 -> R$ 46,290.80 | H21: =IRR($D$36:D39) -> -36%
B22: 4 | C22: 2021 | D22: R$ 240.00 | E22: =(C7-C7*3*C8)*(F8+F8*3*F10) -> R$ 10,064.42 | F22: R$ 9,824.42 | G22: R$ 36,978.55 | H22: =IRR($D$36:D40) -> -22%
B23: 5 | C23: 2022 | D23: R$ 240.00 | E23: =(C7-C7*4*C8)*(F8+F8*4*F10) -> R$ 10,448.70 | F23: R$ 10,208.70 | G23: R$ 27,302.06 | H23: =IRR($D$36:D41) -> -12%
B24: 6 | C24: 2023 | D24: R$ 240.00 | E24: =(C7-C7*5*C8)*(F8+F8*5*F10) -> R$ 10,828.53 | F24: R$ 10,588.53 | G24: R$ 17,265.54 | H24: =IRR($D$36:D42) -> -6%
B25: 7 | C25: 2024 | D25: R$ 240.00 | E25: =(C7-C7*6*C8)*(F8+F8*6*F10) -> R$ 11,203.92 | F25: R$ 10,963.92 | G25: R$ 6,873.19 | H25: =IRR($D$36:D43) -> -1%
B26: 8 | C26: 2025 | D26: R$ 240.00 | E26: =(C7-C7*7*C8)*(F8+F8*7*F10) -> R$ 11,574.87 | F26: R$ 11,334.87 | G26: =NPV(F5,F26)+G25 -> R$ 3,870.75 | H26: =IRR($D$36:D44) -> 2%
B27: 9 | C27: 2026 | D27: R$ 240.00 | E27: =(C7-C7*8*C8)*(F8+F8*8*F10) -> R$ 11,941.37 | F27: R$ 11,701.37 | G27: =NPV(F5,F27)+G26 -> R$ 14,962.10 | H27: =IRR($D$36:D45) -> 5%
A28: Inversor Novo | B28: 10 | C28: 2027 | D28: R$ 10,000.00 | E28: =(C7-C7*9*C8)*(F8+F8*9*F10) -> R$ 12,303.43 | F28: R$ 2,303.43 | G28: =NPV(F5,F28)+G27 -> R$ 17,145.45 | H28: =IRR($D$36:D46) -> 5%
B29: 11 | C29: 2028 | D29: R$ 240.00 | E29: =(C7-C7*10*C8)*(F8+F8*10*F10) -> R$ 12,661.05 | F29: R$ 12,421.05 | G29: =NPV(F5,F29)+G28 -> R$ 28,918.96 | H29: =IRR($D$36:D47) -> 7%
B30: 12 | C30: 2029 | D30: R$ 240.00 | E30: =(C7-C7*11*C8)*(F8+F8*11*F10) -> R$ 13,014.23 | F30: R$ 12,774.23 | G30: =NPV(F5,F30)+G29 -> R$ 41,027.23 | H30: =IRR($D$36:D48) -> 8%
D36: =D18 -> -R$ 72,000.00
D37: =F19 -> 8,644.95
D38: =F20 -> 9,042.55
D39: 9,435.71
D40: 9,824.42
D41: 10,208.70
D42: 10,588.53
D43: 10,963.92
D44: 11,334.87
D45: 11,701.37
D46: 2,303.43
D47: 12,421.05
D48: 12,774.23

Sheet Rural_Agropecuária_mes_mes
A2: Rural/agropecuária
A4: Informações Importantes
A5: Tamanho do sistema a ser instalado (Wp) | B5: 18000 | C5: Informações Financeiras | D5: Taxa de disponibilidade (%) | E5: 2.50%
A6: Expectativa de produção mensal (kwh) | D6: Valor do R$/Wp | E6: R$ 4.00
A7: Expectativa de produção anual de Energia (kWh) | B7: 23018 | D7: Custo Total | E7: =E6*B5 -> R$ 72,000.00
A8: Decaimento da Produção (%/ano) | B8: 0.50% | D8: Custo do kWh | E8: 0.386
A9: Custo de disponibilidade (kWh) | B9: 100 | D9: Alíquota ICMS sobre CD | E9: 30.00%
A10: Consumo médio mensal | B10: 1894 | D10: Aumento anual da tarifa | E10: 5.00%
D11: Custos de manutenção diversos (R$/mês) | E11: 20
D12: Troca do Inversor (10 anos) | E12: R$ 10,000.00
A14: Mês | B14: Consumo | C14: Produção | D14: Disponibilidade | E14: Excedente* | F14: Acumulado | G14: Receita | H14: Saldo | I14: VPL | J14: TIR
A16: Janeiro | B16: 2038 | C16: 2378.00 | D16: =$B$9 -> 100 | E16: =C16-B16 -> 340.00 | F16: =E16 -> 340.00 | G16: =$E$8*(B16-D16) -> R$ 748.07 | H16: =G16-$E$11 -> R$ 728.07 | I16: =NPV($E$5,H16)-E7 -> -R$ 71,289.69 | J16: =IRR($D$43:D44) -> -99%
A17: Fevereiro | B17: 1701 | C17: 2098.00 | D17: =$B$9 -> 100 | E17: =C17-B17 -> 397.00 | F17: =F16+E17 -> 737.00 | G17: =$E$8*(B17-D17) -> R$ 617.99 | H17: =G17-$E$11 -> R$ 597.99 | I17: =NPV($E$5,H17)+I16 -> -R$ 70,706.29 | J17: =IRR($D$43:D45) -> -90%
A18: Março | B18: 1926 | C18: 2112.00 | D18: 100 | E18: 186.00 | F18: =F17+E18 -> 923.00 | G18: =$E$8*(B18-D18) -> R$ 704.84 | H18: R$ 684.84 | I18: =NPV($E$5,H18)+I17 -> -R$ 70,038.16 | J18: =IRR($D$43:D46) -> -77%
A19: Abril | B19: 1846 | C19: 1846.00 | D19: 100 | E19: 0.00 | F19: =F18+E19 -> 923.00 | G19: =$E$8*(B19-D19) -> R$ 673.96 | H19: R$ 653.96 | I19: -R$ 69,400.15 | J19: =IRR($D$43:D47) -> -66%
A20: Maio | B20: 2194 | C20: 1537.00 | D20: 100 | E20: -657.00 | F20: =F19+E20+D20 -> 366.00 | G20: =$E$8*(B20-D20) -> R$ 808.28 | H20: R$ 788.28 | I20: -R$ 68,631.09 | J20: =IRR($D$43:D48) -> -55%
A21: Junho | B21: 1949 | C21: 1319.00 | D21: 100 | E21: -630.00 | F21: 0.00 | G21: =E8*(C21+F20) -> R$ 650.41 | H21: R$ 630.41 | I21: -R$ 68,016.06 | J21: =IRR($D$43:D49) -> -48%
A22: Julho | B22: 2173 | C22: 1498.00 | D22: 100 | E22: -675.00 | F22: 0 | G22: =$E$8*C22 -> R$ 578.23 | H22: R$ 558.23 | I22: -R$ 67,471.45 | J22: =IRR($D$43:D50) -> -43%
A23: Agosto | B23: 1864 | C23: 1762.00 | D23: 100 | E23: -102.00 | F23: 0 | G23: =$E$8*C23 -> R$ 680.13 | H23: R$ 660.13 | I23: -R$ 66,827.41 | J23: =IRR($D$43:D51) -> -38%
A24: Setembro | B24: 1819 | C24: 1631.00 | D24: 100 | E24: -188.00 | F24: 0.00 | G24: R$ 629.57 | H24: R$ 609.57 | I24: -R$ 66,232.72 | J24: =IRR($D$43:D52) -> -33%
A25: Outubro | B25: 2300 | C25: 2006.00 | D25: 100 | E25: -294.00 | F25: 0.00 | G25: R$ 774.32 | H25: R$ 754.32 | I25: -R$ 65,496.80 | J25: =IRR($D$43:D53) -> -29%
A26: Novembro | B26: 1279 | C26: 2339.00 | D26: 100 | E26: =C26-B26 -> 1060.00 | F26: =E26 -> 1060.00 | G26: =$E$8*(B26-D26) -> R$ 455.09 | H26: R$ 435.09 | I26: -R$ 65,072.32 | J26: =IRR($D$43:D54) -> -27%
A27: Dezembro | B27: 1632 | C27: 2492.00 | D27: 100 | E27: 860.00 | F27: =F26+E27 -> 1920.00 | G27: =$E$8*(B27-D27) -> R$ 591.35 | H27: R$ 571.35 | I27: -R$ 64,514.90 | J27: =IRR($D$43:D55) -> -25%
A28: Janeiro | B28: =B16 -> 2038 | C28: 2492.00 | D28: 100 | E28: 454.00 | F28: =F27+E28 -> 2374.00 | G28: =$E$8*(B28-D28) -> R$ 748.07 | H28: R$ 728.07 | I28: -R$ 63,804.59 | J28: =IRR($D$43:D56) -> -22%
A29: Fevereiro | B29: =B17 -> 1701 | C29: =C17-C17*0.005 -> 2087.51 | D29: 100 | E29: 386.51 | F29: =F28+E29 -> 2760.51 | G29: =$E$8*(B29-D29) -> R$ 617.99 | H29: R$ 597.99 | I29: -R$ 63,221.19 | J29: =IRR($D$43:D57) -> -20%
A30: Março | B30: 1926 | C30: 2101.44 | D30: 100 | E30: 175.44 | F30: =F29+E30 -> 2935.95 | G30: =$E$8*(B30-D30) -> R$ 704.84 | H30: R$ 684.84 | I30: -R$ 62,553.06 | J30: =IRR($D$43:D58) -> -19%
A31: Abril | B31: 1846 | C31: 1836.77 | D31: 100 | E31: -9.23 | F31: =F30+E31 -> 2926.72 | G31: =$E$8*(B31-D31) -> R$ 673.96 | H31: R$ 653.96 | I31: -R$ 61,915.05 | J31: =IRR($D$43:D59) -> -17%
A32: Maio | B32: 2194 | C32: 1529.32 | D32: 100 | E32: -664.69 | F32: =F31+E32 -> 2262.04 | G32: =$E$8*(B32-D32) -> R$ 808.28 | H32: R$ 788.28 | I32: -R$ 61,145.99 | J32: =IRR($D$43:D60) -> -16%
A33: Junho | B33: 1949 | C33: 1312.41 | D33: 100 | E33: -636.60 | F33: =F32+E34 -> 1579.55 | G33: =$E$8*(B33-D33) -> R$ 713.71 | H33: R$ 693.71 | I33: -R$ 60,469.20 | J33: =IRR($D$43:D61) -> -14%
A34: Julho | B34: 2173 | C34: 1490.51 | D34: 100 | E34: -682.49 | F34: =F33+E34 -> 897.06 | G34: =$E$8*(B34-D34) -> R$ 800.18 | H34: R$ 780.18 | I34: -R$ 59,708.05 | J34: =IRR($D$43:D62) -> -13%
A35: Agosto | B35: 1864 | C35: 1753.19 | D35: 100 | E35: -110.81 | F35: =F34+E35 -> 786.25 | G35: =$E$8*(B35-D35) -> R$ 680.90 | H35: R$ 660.90 | I35: -R$ 59,063.26 | J35: =IRR($D$43:D63) -> -12%
A36: Setembro | B36: 1819 | C36: 1622.85 | D36: 100 | E36: -196.16 | F36: =F35+E36 -> 590.09 | G36: =$E$8*(B36-D36) -> R$ 663.53 | H36: R$ 643.53 | I36: -R$ 58,435.43 | J36: =IRR($D$43:D64) -> -12%
A37: Outubro | B37: 2300 | C37: 1995.97 | D37: 100 | E37: -304.03 | F37: =F36+E37 -> 286.06 | G37: =$E$8*(B37-D37) -> R$ 849.20 | H37: R$ 829.20 | I37: -R$ 57,626.45 | J37: =IRR($D$43:D65) -> -11%
A38: Novembro | B38: 1279 | C38: 2327.31 | D38: 100 | E38: 1048.31 | F38: =F37+E38 -> 1334.37 | G38: =$E$8*(B38-D38) -> R$ 455.09 | H38: R$ 435.09 | I38: -R$ 57,201.97 | J38: =IRR($D$43:D66) -> -10%
A39: Dezembro | B39: 1632 | C39: 2479.54 | D39: 100 | E39: 847.54 | F39: =F38+E39 -> 2181.91 | G39: R$ 591.35 | H39: R$ 571.35 | I39: -R$ 56,644.55 | J39: =IRR($D$43:D67) -> -10%
A42: *+ significa excedente de produção e - significa excedente de consumo
D43: -72000
D44: 728.068
D45: 597.986
D46: 684.836
D47: 653.956
D48: 788.284
D49: 630.41
D50: 558.228
D51: 660.132
D52: 609.566
D53: 754.316
D54: 435.094
D55: 571.352
D56: 728.068
D57: 597.986
D58: 684.836
D59: 653.956
D60: 788.284
D61: 693.714
D62: 780.178
D63: 660.904
D64: 643.534
D65: 829.2
D66: 435.094
D67: 571.352

Sheet Redidencial_anual
B1: Informações Importantes
A2: Dimensionamento | B2: Tamanho do sistema a ser instalado (Wp) | C2: 2000 | D2: Informações Financeiras | E2: Taxa de interesse (%) | F2: 10.0%
B3: Expectativa de produção mensal de Energia (kWh) | E3: Custo do kWh* | F3: 0.4159
B4: Expectativa de produção anual de Energia (kWh) | C4: 3000 | E4: Aumento anual da tarifa | F4: 10.00%
B5: Depreciação de Produção (%/ano) | C5: 0.50% | E5: Custo do kWh (TUSD)* | F5: 0.4121 | G5: 0.28847
A6: Informações da instalação | B6: Custo de disponibilidade (kWh) | C6: 30 | E6: Valor do R$/Wp | F6: R$ 6.50
B7: Alíquota ICMS | C7: 30.00%
B8: Consumo médio mensal | C8: 320
B9: Custos de manutenção diversos (R$/mês) | C9: 0
E10: *custos com impostos
C14: Tabela considerando valores médios de produção
C15: Período | D15: Período | E15: Custo | F15: Receita | G15: Saldo | H15: VPL | I15: TIR
C16: 0 | E16: =-F6*C2 -> -R$ 13,000.00
C17: 1 | D17: 2018 | E17: 0 | F17: =C4*F3+C4*G5 -> R$ 2,113.11 | G17: =F17-E17 -> R$ 2,113.11 | H17: =NPV(F2,G17)+E16 -> -R$ 11,078.99 | I17: =IRR(E31:E32) -> -82%
C18: 2 | D18: 2019 | E18: 0 | F18: =(C4-C4*C5)*(F3+F3*F4)+(C4-C4*C5)*(G5+G5*F4) -> R$ 2,312.80 | G18: =F18-E18 -> R$ 2,312.80 | H18: =NPV(F2,G18)+H17 -> -R$ 8,976.45 | I18: =IRR(E31:E33) -> -46%
C19: 3 | D19: 2020 | E19: 0 | F19: =(C4-C4*2*C5)*(F3+F3*2*F4)+(C4-C4*2*C5)*(G5+G5*2*F4) -> R$ 2,510.37 | G19: R$ 2,510.37 | H19: =NPV(F2,G19)+H18 -> -R$ 6,694.29 | I19: =IRR(E31:E34) -> -23%
C20: 4 | D20: 2021 | E20: 0 | F20: =(C4-C4*3*C5)*(F3+F3*3*F4)+(C4-C4*3*C5)*(G5+G5*3*F4) -> R$ 2,705.84 | G20: R$ 2,705.84 | H20: =NPV(F2,G20)+H19 -> -R$ 4,234.44 | I20: =IRR(E31:E35) -> -9%
C21: 5 | D21: 2022 | E21: 0 | F21: =(C4-C4*4*C5)*(F3+F3*4*F4)+(C4-C4*4*C5)*(G5+G5*4*F4) -> R$ 2,899.19 | G21: R$ 2,899.19 | H21: =NPV(F2,G21)+H20 -> -R$ 1,598.81 | I21: =IRR(E31:E36) -> -0%
C22: 6 | D22: 2023 | E22: 0 | F22: =(C4-C4*5*C5)*(F3+F3*5*F4)+(C4-C4*5*C5)*(G5+G5*5*F4) -> R$ 3,090.42 | G22: R$ 3,090.42 | H22: =NPV(F6,G22)+H21 -> -R$ 1,186.75 | I22: =IRR(E31:E37) -> 6%
C23: 7 | D23: 2024 | E23: 0 | F23: =(C4-C4*6*C5)*(F3+F3*6*F4)+(C4-C4*6*C5)*(G5+G5*6*F4) -> R$ 3,279.55 | G23: R$ 3,279.55 | H23: =NPV(F2,G23)+H22 -> R$ 1,794.65 | I23: =IRR(E31:E38) -> 10%
C24: 8 | D24: 2025 | E24: 0 | F24: =(C4-C4*7*C5)*(F3+F3*7*F4)+(C4-C4*7*C5)*(G5+G5*7*F4) -> R$ 3,466.56 | G24: R$ 3,466.56 | H24: =NPV(F2,G24)+H23 -> R$ 4,946.07 | I24: =IRR(E31:E39) -> 13%
C25: 9 | D25: 2026 | E25: 0 | F25: =(C4-C4*8*C5)*(F3+F3*8*F4)+(C4-C4*8*C5)*(G5+G5*8*F4) -> R$ 3,651.45 | G25: R$ 3,651.45 | H25: =NPV(F2,G25)+H24 -> R$ 8,265.57 | I25: =IRR(E31:E40) -> 15%
C26: 10 | D26: 2027 | E26: R$ 2,500.00 | F26: =(C4-C4*9*C5)*(F3+F3*9*F4)+(C4-C4*9*C5)*(G5+G5*9*F4) -> R$ 3,834.24 | G26: R$ 1,334.24 | H26: =NPV(F2,G26)+H25 -> R$ 9,478.51 | I26: =IRR(E31:E41) -> 15%
C27: 11 | D27: 2028 | E27: 0 | F27: =(C4-C4*10*C5)*(F3+F3*10*F4)+(C4-C4*10*C5)*(G5+G5*10*F4) -> R$ 4,014.91 | G27: R$ 4,014.91 | H27: =NPV(F2,G27)+H26 -> R$ 13,128.43 | I27: =IRR(E31:E42) -> 16%
C28: 12 | D28: 2029 | E28: 0 | F28: =(C4-C4*11*C5)*(F3+F3*11*F4)+(C4-C4*11*C5)*(G5+G5*11*F4) -> R$ 4,193.47 | G28: R$ 4,193.47 | H28: =NPV(F2,G28)+H27 -> R$ 16,940.67 | I28: =IRR(E31:E43) -> 17%
E31: -10000
E32: 1831.362
E33: 1913.315449
E34: 1994.353218
E35: 2074.475306
E36: 2153.681712
E37: 2231.972437
E38: 2309.347482
E39: 2385.806845
E40: 2461.350528
E41: 35.9785295
E42: 2609.69085
E43: 2682.48749

Sheet RESIDENCIAL_MES_MES_mono
B1: Informações Importantes
A2: Dimensionamento | B2: Tamanho do sistema a ser instalado (Wp) | C2: 2000 | D2: Informações Financeiras | E2: Taxa de disponibilidade (%) | F2: 10.0%
B3: Expectativa de produção mensal de Energia (kWh) | C3: Abaixo | E3: Custo do kWh* | F3: 0.4159
B4: Expectativa de produção anual de Energia (kWh) | C4: 2630 | E4: Aumento anual da tarifa | F4: 10.00%
B5: Depreciação de Produção (%/ano) | C5: 0.50% | E5: Custo do kWh (TUSD)* | F5: 0.4121 | G5: 0.28847
A6: Informações da instalação | B6: Custo de disponibilidade (kWh) | C6: 30 | E6: Valor do R$/Wp | F6: R$ 6.50
B7: Alíquota ICMS | C7: 30.00%
B8: Consumo médio mensal | C8: 320
B9: Custos de manutenção diversos (R$/mês) | C9: 0
E10: *custos com impostos
E13: =-F6*C2 -> -R$ 13,000.00
C14: Tabela considerando valores médios de produção
A15: Ano | B15: Mês | C15: Consumo | D15: Produção | E15: Disponibilidade | F15: Excedente | G15: Receita | H15: Saldo | I15: VPL | J15: TIR
A17: 2018 | B17: Janeiro | C17: 295 | D17: 272.00 | E17: =C6 -> 30 | F17: =D17-C17 -> -23.00 | G17: =(D17-($C$6+F17))*($F$3+$G$5) -> R$ 186.66 | H17: =G17 -> R$ 186.66 | I17: =NPV(F2,H17)+E13 -> -R$ 12,830.31 | J17: =IRR(E43:E44) -> -98%
B18: Fevereiro | C18: 290 | D18: 228.00 | E18: =C6 -> 30 | F18: =D18-C18 -> -62.00 | G18: =(D18*($F$3+$G$5)) -> R$ 160.60 | H18: =G18 -> R$ 160.60 | I18: =NPV(0.06,H18)+I17 -> -R$ 12,678.80 | J18: =IRR(E43:E45) -> -86%
B19: Março | C19: 325 | D19: 244.00 | E19: =C6 -> 30 | F19: -81.00 | G19: =(D19*($F$3+$G$5)) -> R$ 171.87 | H19: R$ 171.87 | I19: =NPV(0.06,H19)+I18 -> -R$ 12,516.67 | J19: =IRR(E43:E46) -> -71%
B20: Abril | C20: 309 | D20: 202.00 | E20: =C6 -> 30 | F20: -107.00 | G20: =(D20*($F$3+$G$5)) -> R$ 142.28 | H20: R$ 142.28 | I20: -R$ 12,382.44 | J20: =IRR(E43:E47) -> -60%
B21: Maio | C21: 317 | D21: 188.00 | E21: =C6 -> 30 | F21: -129.00 | G21: =D21*(0.4159+0.28847) -> R$ 132.42 | H21: R$ 132.42 | I21: -R$ 12,257.51 | J21: =IRR(E43:E48) -> -51%
B22: Junho | C22: 256 | D22: 155.00 | E22: =C6 -> 30 | F22: -101.00 | G22: =D22*(0.4159+0.28847) -> R$ 109.18 | H22: R$ 109.18 | I22: =NPV(0.06,H22)+I21 -> -R$ 12,154.51 | J22: =IRR(E43:E49) -> -45%
B23: Julho | C23: 312 | D23: 173.00 | E23: =C6 -> 30 | F23: -139.00 | G23: =D23*(0.4159+0.28847) -> R$ 121.86 | H23: R$ 121.86 | I23: -R$ 12,039.56 | J23: =IRR(E43:E50) -> -39%
B24: Agosto | C24: 281 | D24: 202.00 | E24: =C6 -> 30 | F24: -79.00 | G24: =D24*(0.4159+0.28847) -> R$ 142.28 | H24: R$ 142.28 | I24: -R$ 11,905.33 | J24: =IRR(E43:E51) -> -33%
B25: Setembro | C25: 258 | D25: 209.00 | E25: =C6 -> 30 | F25: -49.00 | G25: =D25*(0.4159+0.28847) -> R$ 147.21 | H25: R$ 147.21 | I25: -R$ 11,766.45 | J25: =IRR(E43:E52) -> -29%
B26: Outubro | C26: 291 | D26: 250.00 | E26: =C6 -> 30 | F26: -41.00 | G26: =D26*(0.4159+0.28847) -> R$ 176.09 | H26: R$ 176.09 | I26: -R$ 11,600.32 | J26: =IRR(E43:E53) -> -25%
B27: Novembro | C27: 303 | D27: 251.00 | E27: =C6 -> 30 | F27: -52.00 | G27: =D27*(0.4159+0.28847) -> R$ 176.80 | H27: R$ 176.80 | I27: -R$ 11,433.53 | J27: =IRR(E43:E54) -> -22%
B28: Dezembro | C28: 314 | D28: 256.00 | E28: =C6 -> 30 | F28: -58.00 | G28: =D28*(0.4159+0.28847) -> R$ 180.32 | H28: R$ 180.32 | I28: -R$ 11,263.42 | J28: =IRR(E43:E55) -> -19%
A29: 2019 | B29: Janeiro | C29: =C17 -> 295 | D29: =D17-D17*0.005 -> 270.64 | E29: =C6 -> 30 | F29: -24.36 | G29: =(D29-(C6+F29))*((F3+G5)+(F3+G5)*F4) -> R$ 205.32 | H29: R$ 205.32 | I29: -R$ 11,069.72 | J29: =IRR(E43:E56) -> -17%
B30: Fevereiro | C30: =C18 -> 290 | D30: =D18-D18*0.005 -> 226.86 | E30: =C6 -> 30 | F30: -63.14 | G30: =D30*(((F3+G5)+(F3+G5)*F4)) -> R$ 175.77 | H30: R$ 175.77 | I30: -R$ 10,903.89 | J30: =IRR(E43:E57) -> -15%
B31: Março | C31: 325 | D31: 242.78 | E31: =C6 -> 30 | F31: -82.22 | G31: =D31*(((F3+G5)+(F3+G5)*F4)) -> R$ 188.11 | H31: R$ 188.11 | I31: -R$ 10,726.43 | J31: =IRR(E43:E58) -> -14%
B32: Abril | C32: 309 | D32: 200.99 | E32: =C6 -> 30 | F32: -108.01 | G32: =D32*(((F3+G5)+(F3+G5)*F4)) -> R$ 155.73 | H32: R$ 155.73 | I32: -R$ 10,579.52 | J32: =IRR(E43:E59) -> -13%
B33: Maio | C33: 317 | D33: 187.06 | E33: =C6 -> 30 | F33: -129.94 | G33: =D33*(((F3+G5)+(F3+G5)*F4)) -> R$ 144.94 | H33: R$ 144.94 | I33: -R$ 10,442.79 | J33: =IRR(E43:E60) -> -12%
B34: Junho | C34: 256 | D34: 154.23 | E34: =C6 -> 30 | F34: -101.78 | G34: =D34*(((F3+G5)+(F3+G5)*F4)) -> R$ 119.49 | H34: R$ 119.49 | I34: -R$ 10,330.06 | J34: =IRR(E43:E61) -> -11%
B35: Julho | C35: 312 | D35: 172.14 | E35: =C6 -> 30 | F35: -139.87 | G35: =D35*(((F3+G5)+(F3+G5)*F4)) -> R$ 133.37 | H35: R$ 133.37 | I35: -R$ 10,204.24 | J35: =IRR(E43:E62) -> -10%
B36: Agosto | C36: 281 | D36: 200.99 | E36: =C6 -> 30 | F36: -80.01 | G36: =D36*(((F3+G5)+(F3+G5)*F4)) -> R$ 155.73 | H36: R$ 155.73 | I36: -R$ 10,057.32 | J36: =IRR(E43:E63) -> -9%
B37: Setembro | C37: 258 | D37: 207.96 | E37: =C6 -> 30 | F37: -50.05 | G37: =D37*(((F3+G5)+(F3+G5)*F4)) -> R$ 161.12 | H37: R$ 161.12 | I37: -R$ 9,905.32 | J37: =IRR(E43:E64) -> -8%
B38: Outubro | C38: 291 | D38: 248.75 | E38: =C6 -> 30 | F38: -42.25 | G38: =D38*(((F3+G5)+(F3+G5)*F4)) -> R$ 192.73 | H38: R$ 192.73 | I38: -R$ 9,723.49 | J38: =IRR(E43:E65) -> -8%
B39: Novembro | C39: 303 | D39: 249.75 | E39: =C6 -> 30 | F39: -53.26 | G39: =D39*(((F3+G5)+(F3+G5)*F4)) -> R$ 193.50 | H39: R$ 193.50 | I39: -R$ 9,540.94 | J39: =IRR(E43:E66) -> -7%
B40: Dezembro | C40: 314 | D40: 254.72 | E40: =C6 -> 30 | F40: -59.28 | G40: =D40*(((F3+G5)+(F3+G5)*F4)) -> R$ 197.36 | H40: R$ 197.36 | I40: -R$ 9,354.76 | J40: =IRR(E43:E67) -> -6%
E43: -10000
E44: =G17 -> R$ 186.66
E45: =G18 -> R$ 160.60
E46: R$ 171.87
E47: R$ 142.28
E48: R$ 132.42
E49: R$ 109.18
E50: R$ 121.86
E51: R$ 142.28
E52: R$ 147.21
E53: R$ 176.09
E54: R$ 176.80
E55: R$ 180.32
E56: R$ 205.32
E57: R$ 175.77
E58: R$ 188.11
E59: R$ 155.73
E60: R$ 144.94
E61: R$ 119.49
E62: R$ 133.37
E63: R$ 155.73
E64: R$ 161.12
E65: R$ 192.73
E66: R$ 193.50
E67: R$ 197.36

Sheet Residencial mês_mês_tri
B1: Informações Importantes
A2: Dimensionamento | B2: Tamanho do sistema a ser instalado (Wp) | C2: 2000 | D2: Informações Financeiras | E2: Taxa de disponibilidade (%) | F2: 10.0%
B3: Expectativa de produção mensal de Energia (kWh) | C3: Abaixo | E3: Custo do kWh* | F3: 0.4159
B4: Expectativa de produção anual de Energia (kWh) | C4: 2630 | E4: Aumento anual da tarifa | F4: 10.00%
B5: Depreciação de Produção (%/ano) | C5: 0.50% | E5: Custo do kWh (TUSD)* | F5: 0.4121 | G5: 0.28847
A6: Informações da instalação | B6: Custo de disponibilidade (kWh) | C6: 100 | E6: Valor do R$/Wp | F6: R$ 6.50
B7: Alíquota ICMS | C7: 30.00%
B8: Consumo médio mensal | C8: 320
B9: Custos de manutenção diversos (R$/mês) | C9: 0
E10: *custos com impostos
E13: =-F6*C2 -> -R$ 13,000.00
C14: Tabela considerando valores médios de produção
A15: Ano | B15: Mês | C15: Consumo | D15: Produção | E15: Disponibilidade | F15: Excedente | G15: Receita | H15: Saldo | I15: VPL | J15: TIR
A17: 2018 | B17: Janeiro | C17: 295 | D17: 272.00 | E17: =C6 -> 100 | F17: =D17-C17 -> -23.00 | G17: =(D17-(C6+F17))*(F3+G5) -> R$ 137.35 | H17: =G17 -> R$ 137.35 | I17: =NPV(F2,H17)+E13 -> -R$ 12,875.13 | J17: =IRR(E43:E44) -> -99%
B18: Fevereiro | C18: 290 | D18: 228.00 | E18: =C6 -> 100 | F18: =D18-C18 -> -62.00 | G18: =(D18-(C6+F18))*(F3+G5) -> R$ 133.83 | H18: =G18 -> R$ 133.83 | I18: =NPV(0.06,H18)+I17 -> -R$ 12,748.88 | J18: =IRR(E43:E45) -> -88%
B19: Março | C19: 325 | D19: 244.00 | E19: =C6 -> 100 | F19: -81.00 | G19: =(D19-(C6+F19))*(F3+G5) -> R$ 158.48 | H19: R$ 158.48 | I19: =NPV(0.06,H19)+I18 -> -R$ 12,599.37 | J19: =IRR(E43:E46) -> -73%
B20: Abril | C20: 309 | D20: 202.00 | E20: =C6 -> 100 | F20: -107.00 | G20: =D20*(0.4159+0.28847) -> R$ 142.28 | H20: R$ 142.28 | I20: -R$ 12,465.14 | J20: =IRR(E43:E47) -> -61%
B21: Maio | C21: 317 | D21: 188.00 | E21: =C6 -> 100 | F21: -129.00 | G21: =D21*(0.4159+0.28847) -> R$ 132.42 | H21: R$ 132.42 | I21: -R$ 12,340.21 | J21: =IRR(E43:E48) -> -52%
B22: Junho | C22: 256 | D22: 155.00 | E22: =C6 -> 100 | F22: -101.00 | G22: =D22*(0.4159+0.28847) -> R$ 109.18 | H22: R$ 109.18 | I22: =NPV(0.06,H22)+I21 -> -R$ 12,237.21 | J22: =IRR(E43:E49) -> -45%
B23: Julho | C23: 312 | D23: 173.00 | E23: =C6 -> 100 | F23: -139.00 | G23: =D23*(0.4159+0.28847) -> R$ 121.86 | H23: R$ 121.86 | I23: -R$ 12,122.26 | J23: =IRR(E43:E50) -> -39%
B24: Agosto | C24: 281 | D24: 202.00 | E24: =C6 -> 100 | F24: -79.00 | G24: =(D24-(C6+F24))*(F3+G5) -> R$ 127.49 | H24: R$ 127.49 | I24: -R$ 12,001.98 | J24: =IRR(E43:E51) -> -34%
B25: Setembro | C25: 258 | D25: 209.00 | E25: =C6 -> 100 | F25: -49.00 | G25: =(D25-(C6+F25))*(F3+G5) -> R$ 111.29 | H25: R$ 111.29 | I25: -R$ 11,896.99 | J25: =IRR(E43:E52) -> -30%
B26: Outubro | C26: 291 | D26: 250.00 | E26: =C6 -> 100 | F26: -41.00 | G26: =(D26-(C6+F26))*(F3+G5) -> R$ 134.53 | H26: R$ 134.53 | I26: -R$ 11,770.07 | J26: =IRR(E43:E53) -> -27%
B27: Novembro | C27: 303 | D27: 251.00 | E27: =C6 -> 100 | F27: -52.00 | G27: =(D27-(C6+F27))*(F3+G5) -> R$ 142.99 | H27: R$ 142.99 | I27: -R$ 11,635.18 | J27: =IRR(E43:E54) -> -23%
B28: Dezembro | C28: 314 | D28: 256.00 | E28: =C6 -> 100 | F28: -58.00 | G28: =(D28-(C6+F28))*(F3+G5) -> R$ 150.74 | H28: R$ 150.74 | I28: -R$ 11,492.97 | J28: =IRR(E43:E55) -> -21%
A29: 2019 | B29: Janeiro | C29: =C17 -> 295 | D29: =D17-D17*0.005 -> 270.64 | E29: =C6 -> 100 | F29: -24.36 | G29: =(D29-(C6+F29))*(0.7+0.7*F4) -> R$ 150.15 | H29: R$ 150.15 | I29: -R$ 11,351.32 | J29: =IRR(E43:E56) -> -19%
B30: Fevereiro | C30: =C18 -> 290 | D30: =D18-D18*0.005 -> 226.86 | E30: =C6 -> 100 | F30: -63.14 | G30: =(D30-(C6+F30))*(0.7+0.7*F4) -> R$ 146.30 | H30: R$ 146.30 | I30: -R$ 11,213.30 | J30: =IRR(E43:E57) -> -17%
B31: Março | C31: 325 | D31: 242.78 | E31: =C6 -> 100 | F31: -82.22 | G31: =(D31-(C6+F31))*(0.7+0.7*F4) -> R$ 173.25 | H31: R$ 173.25 | I31: -R$ 11,049.86 | J31: =IRR(E43:E58) -> -15%
B32: Abril | C32: 309 | D32: 200.99 | E32: =C6 -> 100 | F32: -108.01 | G32: =(D32-(C6+F32))*(0.7+0.7*F4) -> R$ 160.93 | H32: R$ 160.93 | I32: -R$ 10,898.04 | J32: =IRR(E43:E59) -> -14%
B33: Maio | C33: 317 | D33: 187.06 | E33: =C6 -> 100 | F33: -129.94 | G33: =(D33-(C6+F33))*(0.7+0.7*F4) -> R$ 167.09 | H33: R$ 167.09 | I33: -R$ 10,740.41 | J33: =IRR(E43:E60) -> -12%
B34: Junho | C34: 256 | D34: 154.23 | E34: =C6 -> 100 | F34: -101.78 | G34: =(D34-(C6+F34))*(0.7+0.7*F4) -> R$ 120.12 | H34: R$ 120.12 | I34: -R$ 10,627.09 | J34: =IRR(E43:E61) -> -12%
B35: Julho | C35: 312 | D35: 172.14 | E35: =C6 -> 100 | F35: -139.87 | G35: =(D35-(C6+F35))*(0.7+0.7*F4) -> R$ 163.24 | H35: R$ 163.24 | I35: -R$ 10,473.09 | J35: =IRR(E43:E62) -> -11%
B36: Agosto | C36: 281 | D36: 200.99 | E36: =C6 -> 100 | F36: -80.01 | G36: =(D36-(C6+F36))*(0.7+0.7*F4) -> R$ 139.37 | H36: R$ 139.37 | I36: -R$ 10,341.61 | J36: =IRR(E43:E63) -> -10%
B37: Setembro | C37: 258 | D37: 207.96 | E37: =C6 -> 100 | F37: -50.05 | G37: =(D37-(C6+F37))*(0.7+0.7*F4) -> R$ 121.66 | H37: R$ 121.66 | I37: -R$ 10,226.83 | J37: =IRR(E43:E64) -> -9%
B38: Outubro | C38: 291 | D38: 248.75 | E38: =C6 -> 100 | F38: -42.25 | G38: =(D38-(C6+F38))*(0.7+0.7*F4) -> R$ 147.07 | H38: R$ 147.07 | I38: -R$ 10,088.09 | J38: =IRR(E43:E65) -> -9%
B39: Novembro | C39: 303 | D39: 249.75 | E39: =C6 -> 100 | F39: -53.26 | G39: =(D39-(C6+F39))*(0.7+0.7*F4) -> R$ 156.31 | H39: R$ 156.31 | I39: -R$ 9,940.63 | J39: =IRR(E43:E66) -> -8%
B40: Dezembro | C40: 314 | D40: 254.72 | E40: =C6 -> 100 | F40: -59.28 | G40: =(D40-(C6+F40))*(0.7+0.7*F4) -> R$ 164.78 | H40: R$ 164.78 | I40: -R$ 9,785.17 | J40: =IRR(E43:E67) -> -7%
E43: -10000
E44: 137.35215
E45: 133.8303
E46: 158.48325
E47: 142.28274
E48: 132.42156
E49: 109.17735
E50: 121.85601
E51: 127.49097
E52: 111.29046
E53: 134.53467
E54: 142.98711
E55: 150.73518
E56: 143.325
E57: 139.65
E58: 165.375
E59: 153.615
E60: 159.495
E61: 114.66
E62: 155.82
E63: 133.035
E64: 116.13
E65: 140.385
E66: 149.205
E67: 157.29
